{"text_format":"1","workbook":"xlsx","n_sheets":10,"sheets":["Liste CD64","1-Points clés","2-Présentation de la structure ","Carte","3-Saisie des comptes passés","4-Saisie comptes prévisionnels","5-Impact COVID19","Plan de trésorerie","Synthèse","Liste FAA"],"not_rendered":{"charts":10,"images":2,"macros":0,"external_links":6,"defined_names":20,"comments":6,"pivot_tables":0},"unopened":[],"bounds":{"document_bytes":16777216,"sheet_cells":100000,"rows_first":2000,"rows_last":500,"rows_between":2000,"halvings":0,"cell_chars":16384,"cell_head_chars":4096},"cells_cut":0,"cells_raw":0,"read":"whole","date_system":"1900"}

{"sheet":"Liste CD64","index":0,"n_rows":27,"n_cols":18,"rows_kept":27,"cut":false,"hidden":true,"merged":[]}
["Madame ","à 3 mois ","Oui","Propriétaire",null,null,null,null,null,"Culture",null,null,null,"1","Anglet",null,null,"Aquis"]
["Monsieur","à 6 mois ","Non","Locataire auprès d'un bailleur privé",null,null,null,null,null,"Sport",null,null,null,"2","Artix et Pays de Soubestre",null,null,"En cours "]
[null,"à 1 ans ",null,"Hébergé dans un local mis à disposition par la commune",null,null,null,null,null,"Solidarités",null,null,null,"3","Baïgura et Mondarrain",null,null,"Refusé"]
[null,"à 2 ans ",null,"Hébergé dans un local mis à dispostion par une collectivité/ un organisme public",null,null,null,null,null,"Education",null,null,null,"4","Bayonne-1"]
[null,"Pas de risque de rupture",null,"Autre, précisez =>",null,null,null,null,null,"Environnement et développement durable",null,null,null,"5","Bayonne-2"]
[null,"Indeterminé",null,null,null,null,null,null,null,"Agriculture",null,null,null,"6","Bayonne-3"]
[null,null,null,null,null,null,null,null,null,"Jeunesse et citoyenneté ",null,null,null,"7","Biarritz"]
[null,null,null,null,null,null,null,null,null,"Coopération et développement territorial ",null,null,null,"8","Billère et Coteaux de Jurançon"]
[null,null,null,null,null,null,null,null,null,"Déplacements",null,null,null,"9","Coeur de Béarn"]
[null,null,null,null,null,null,null,null,null,"Autres",null,null,null,"10","Hendaye-Côte Basque Sud"]
[null,null,null,null,null,null,null,null,null,null,null,null,null,"11","Lescar, Gave et Terres du Pont-Long"]
[null,null,null,null,null,null,null,null,null,null,null,null,null,"12","Montagne Basque"]
[null,null,null,null,null,null,null,null,null,null,null,null,null,"13","Nive-Adour"]
[null,null,null,null,null,null,null,null,null,null,null,null,null,"14","Oloron-Sainte-Marie-1"]
[null,null,null,null,null,null,null,null,null,null,null,null,null,"15","Oloron-Sainte-Marie-2"]
[null,null,null,null,null,null,null,null,null,null,null,null,null,"16","Orthez et Terres des Gaves et du Sel"]
[null,null,null,null,null,null,null,null,null,null,null,null,null,"17","Ouzom, Gave et Rives du Neez"]
[null,null,null,null,null,null,null,null,null,null,null,null,null,"18","Pau-1"]
[null,null,null,null,null,null,null,null,null,null,null,null,null,"19","Pau-2"]
[null,null,null,null,null,null,null,null,null,null,null,null,null,"20","Pau-3"]
[null,null,null,null,null,null,null,null,null,null,null,null,null,"21","Pau-4"]
[null,null,null,null,null,null,null,null,null,null,null,null,null,"22","Pays de Bidache, Amikuze et Ostibarre"]
[null,null,null,null,null,null,null,null,null,null,null,null,null,"23","Pays de Morlaàs et du Montanérès"]
[null,null,null,null,null,null,null,null,null,null,null,null,null,"24","Saint-Jean-de-Luz"]
[null,null,null,null,null,null,null,null,null,null,null,null,null,"25","Terres des Luys et Coteaux du Vic-Bilh"]
[null,null,null,null,null,null,null,null,null,null,null,null,null,"26","Ustaritz-Vallées de Nive et Nivelle"]
[null,null,null,null,null,null,null,null,null,null,null,null,null,"27","Vallées de l'Ousse et du Lagoin"]

{"sheet":"1-Points clés","index":1,"n_rows":0,"n_cols":0,"rows_kept":0,"cut":false,"hidden":false,"merged":[]}

{"sheet":"2-Présentation de la structure ","index":2,"n_rows":95,"n_cols":12,"rows_kept":95,"cut":false,"hidden":false,"merged":[[41,4,42,4],[54,3,54,9],[17,3,17,10],[39,3,40,3],[39,4,40,4],[21,0,21,3],[20,0,20,3],[21,5,21,10],[20,5,20,10],[18,3,18,10],[18,0,18,1],[39,0,40,1],[39,2,40,2],[3,0,3,1],[5,0,5,1],[10,0,10,1],[11,0,11,1],[10,5,10,8],[11,5,11,8],[4,0,4,1],[4,5,4,8],[3,5,3,8],[9,0,9,1],[6,0,6,1],[7,5,7,8],[7,0,7,1],[5,5,5,8],[6,5,6,8],[9,5,9,8],[3,2,3,4],[8,0,8,1],[8,2,8,4],[8,5,8,8],[4,2,4,4],[7,2,7,4],[6,2,6,4],[5,2,5,4],[12,0,12,1],[13,0,13,1],[12,5,12,8],[13,5,13,8],[13,2,13,4],[12,2,12,4],[11,2,11,4],[10,2,10,4],[14,5,14,8],[15,2,15,4],[14,2,14,4],[14,0,14,1],[66,0,72,10],[64,0,65,10],[63,0,63,10],[24,0,25,10],[23,0,23,10],[37,3,37,10],[36,3,36,10],[35,3,35,10],[34,3,34,10],[33,3,33,10],[32,3,32,10],[31,3,31,10],[30,3,30,10],[29,3,29,10],[28,3,28,10],[27,3,27,10],[56,3,56,9],[55,3,55,9],[61,3,61,9],[41,3,42,3],[41,0,42,2],[95,0,96,10],[94,0,94,10],[92,3,92,10],[91,3,91,10],[90,3,90,10],[89,3,89,10],[88,3,88,10],[87,3,87,10],[84,0,85,10],[60,3,60,9],[59,3,59,9],[58,3,58,9],[57,3,57,9],[74,0,74,10],[75,0,76,10],[81,3,81,10],[80,3,80,10],[79,3,79,10],[78,3,78,10],[15,5,15,8],[15,0,15,1],[17,0,17,1],[8,9,8,10],[83,0,83,10],[0,0,1,10],[46,0,47,10],[45,0,45,10],[44,0,44,10],[49,0,49,10],[50,0,51,10],[3,9,3,10],[4,9,4,10],[5,9,5,10],[6,9,6,10],[7,9,7,10],[9,9,9,10],[10,9,10,10],[11,9,11,10],[12,9,12,10],[13,9,13,10],[14,9,14,10],[15,9,15,10],[9,2,9,4]]}
["DOSSIER DE DEMANDE DE FONDS DE SOUTIEN EXCEPTIONNEL\nCONSEIL DÉPARTEMENTAL DES PYRENEES ATLANTIQUES"]
[]
[]
["NOM DE L'ASSOCIATION ",null,null,null,null,"ADRESSE SIEGE SOCIAL "]
["DATE DE CRÉATION DE L'ASSOCIATION ",null,null,null,null,"Nombre d'adhérents "]
["NOM ET PRÉNOM DU REPRÉSENTANT LÉGAL ",null,null,null,null,"NOM ET PRÉNOM de la personne chargée du dossier "]
["TEL / COURRIEL DU REPRESENTANT LÉGAL ",null,null,null,null,"TEL / COURRIEL de la personne chargée du dossier "]
["FONCTION (président ou autre fonction désignée par les statuts) ",null,null,null,null,"FONCTION de la personne chargée du dossier "]
["MEMBRE D'UN RÉSEAU (précisez qui)",null,null,null,null,"Comptabilité"]
["NOMBRE DE SALARIÉS ",null,null,null,null,"Numéro de SIREN-SIRET "]
["Préciser nombre de CDI et/ou CDD ",null,null,null,null,"Département du siège social"]
["dont contrats aidés (CDDI, CUI, PEC…) ",null,null,null,null,"Secteur d'activité ",null,null,null,null,null,"choisir dans liste déroulante"]
["dont intermittents ",null,null,null,null,"Détail des activités "]
["dont saisonniers ",null,null,null,null,"Dernier exercice clos (comptes arrêtés)",null,null,null,null,null,"choisir dans liste déroulante"]
["Autre (service civique, stagiaire…) ",null,null,null,null,"Territoire d'intervention de la structure (canton) ",null,null,null,null,null,"choisir dans liste déroulante"]
["Nombre d'équivalents temps plein (ETP) ",null,null,null,null," Pour trouver votre canton ",null,null,null,"Carte"]
[]
["Votre association dispose-t-elle de locaux? ",null,"Réponse",null,null,null,null,null,null,null,null,"choisir dans liste déroulante"]
["Si oui, quel est votre statut d'occupation ?",null,"Réponse",null,null,null,null,null,null,null,null,"choisir dans liste déroulante"]
[]
["Votre association a-t-elle déjà mobilisé le DLA (Dispositif Local d'Accompagnement) ?",null,null,null,"Réponse",null,null,null,null,null,null,"choisir dans liste déroulante"]
["Votre association a-t-elle déjà mobilisé France Active Aquitaine ?",null,null,null,"Réponse",null,null,null,null,null,null,"choisir dans liste déroulante"]
[]
["1- Sur quels aspects de votre projet la crise sanitaire a-t-elle eu un impact ?"]
["Cochez les réponses correspondantes et précisez les éléments concernés.\nVous pouvez également joindre à ce questionnaire tout document permettant d’appréhender le contexte et les impacts."]
[]
[]
[null,"Suppression ou report de manifestations ","Précisez:"]
[null,"Suppression ou report d'évènements ","Précisez:"]
[null,"Suppression ou report de prestations","Précisez:"]
[null,"Impacts sur l'organisation de manifestations, d'évènements ou de prestations","Précisez:"]
[null,"Résidences, tournées ou représentations annulées ou reportées","Précisez:"]
[null,"Diminution des activités et recettes réalisées","Précisez:"]
[null,"Pertes d’adhésions et de partenariats","Précisez:"]
[null,"Mise en sommeil du fonctionnement de l'association ","Précisez:"]
[null,"Augmentation de l'activité","Précisez:"]
[null,"Modification de l'activité avec des modalités différentes d'organisation","Précisez:"]
[null,"Autres impacts ","Précisez:"]
[]
["Avez-vous établi un plan de trésorerie ? ",null,"Plan de trésorerie","Réponse : ",null,"choisir dans liste déroulante"]
[]
["Estimez-vous une rupture de trésorerie possible ?",null,null,"Réponse : ",null,"choisir dans liste déroulante"]
[]
[]
["2- Précisions sur votre état de trésorerie"]
["Quel est son montant actuel ? Sur combien de jours/de mois peut-elle absorber vos charges ?  Quel était son montant avant et après les mois les plus fortement impactés par le Covid ?  Comment votre trésorerie a-t-elle été impactée ?  Autres détails que vous souhaitez partager ?"]
["\n"]
[]
[]
["3- Impact ressources humaines"]
["Cochez les réponses correspondantes et précisez les éléments concernés. Notamment : impacts liés au chômage partiel/ complet/ licenciement(s)/ ...\nVous pouvez également joindre à ce questionnaire tout document permettant d’appréhender le contexte et les impacts."]
[]
[]
[null,null,null,null,null,null,null,null,null,null,"Nombre ETP impacté(s)"]
[null,"CDI impacté(s)","Précisez:"]
[null,"CDD impacté(s) ","Précisez:"]
[null,"Intermittent(s) mobilisé(s) impacté(s)","Précisez:"]
[null,"Contrat(s) en insertion impacté(s)","Précisez:"]
[null,"Prestataire(s) impacté(s)","Précisez:"]
[null,"Alternant(s) impacté(s)","Précisez:"]
[null,"Stagiaire(s), service(s) civique(s), …  impacté(s)","Précisez:"]
[null,"Autres impacts ","Précisez:"]
[]
["4- Impact estimé à plus long terme"]
["Si vous pressentez déjà des répercussions sur le fonctionnement de votre structure à plus long terme (année 2021), vous avez la possibilité de préciser librement cette perception."]
[]
["Précisez: "]
[]
[]
[]
[]
[]
[]
[]
["5- Quelles sont les perspectives actuelles de votre structure?"]
["Cochez les réponses correspondantes et précisez les éléments concernés. "]
[]
[]
[null,"Pérennité compromise à court ou moyen terme ","Précisez:"]
[null,"Reprise de l'activité à l'identique","Précisez:"]
[null,"Réorganisation","Précisez:"]
[null,"Autres","Précisez:"]
[]
["6- Vos attentes et vos besoins au-delà d'une aide financière"]
["Cochez les réponses correspondantes et précisez les éléments concernés."]
[]
[]
[null,"Assistance pour trouver des solutions adaptées aux circonstances","Précisez:"]
[null,"Maintien des partenariats financiers ","Précisez:"]
[null,"Facilités de trésorerie","Précisez:"]
[null,"Report de remboursement de crédit ","Précisez:"]
[null,"Suspension de paiements courants (charges fixes)","Précisez:"]
[null,"Autres","Précisez:"]
[]
["7- Eléments complémentaires que vous souhaitez préciser"]

{"sheet":"Carte","index":3,"n_rows":36,"n_cols":2,"rows_kept":36,"cut":false,"hidden":false,"merged":[]}
[]
[]
[]
[]
[]
[]
[]
[]
[]
[]
[]
[]
[]
[]
[]
[]
[]
[]
[]
[]
[]
[]
[]
[]
[]
[]
[]
[]
[]
[]
[]
[]
[]
[]
[]
["Lien: ","https://data.le64.fr/"]

{"sheet":"3-Saisie des comptes passés","index":4,"n_rows":47,"n_cols":11,"rows_kept":47,"cut":false,"hidden":false,"merged":[[38,2,38,3],[39,1,39,3],[2,5,2,8],[1,1,1,8],[2,1,2,4],[12,1,12,8],[13,1,13,4],[13,5,13,8],[28,5,31,8]]}
[]
[null,"Bilan en €"]
[null,"Actif  ",null,null,null,"Passif"]
[null,null,2018,2019,{"$f":"IF('2-Présentation de la structure '!J14=2020,\"2020\",\"Ne pas remplir\")","v":"Ne pas remplir"},null,{"$f":"C4","v":2018},{"$f":"D4","v":2019},{"$f":"IF('2-Présentation de la structure '!J14=2020,\"2020\",\"Ne pas remplir\")","v":"Ne pas remplir"}]
[null,"Actif immobilisé net: ",null,null,null,"Fonds propres: "]
[null,"Actif circulant: ",null,null,null,"dont subventions d'investissement"]
[null,"dont disponibilités",null,null,null,"Dettes financières moyen terme: "]
[null,"dont créances clients",null,null,null,"Dettes financières court terme: "]
[null,"dont subventions à recevoir",null,null,null,"Dettes d'exploitation: "]
[null,"TOTAL ACTIF",{"$f":"C5+C6","v":0},{"$f":"D5+D6","v":0},{"$f":"E5+E6","v":0},"TOTAL PASSIF",{"$f":"G5+G7+G8+G9","v":0},{"$f":"H5+H7+H8+H9","v":0},{"$f":"I5+I7+I8+I9","v":0}]
[null,null,{"$f":"C6-C7-C8-C9","v":0},{"$f":"D6-D7-D8-D9","v":0},null,null,{"$f":"G5-G6","v":0},{"$f":"H5-H6","v":0}]
[]
[null,"Compte de résultat en € "]
[null,"Charges",null,null,null,"Produits"]
[null,null,{"$f":"C4","v":2018},{"$f":"D4","v":2019},{"$f":"E4","v":"Ne pas remplir"},null,{"$f":"C4","v":2018},{"$f":"D4","v":2019},{"$f":"E4","v":"Ne pas remplir"}]
[null,"Charges d'exploitation:",{"$f":"C17+C18+C19+C20+C21+C22","v":0},{"$f":"D17+D18+D19+D20+D21+D22","v":0},0,"Produits d'exploitation: ",{"$f":"G17+G18+G19+G20+G21+G22","v":0},{"$f":"H17+H18+H19+H20+H21+H22","v":0},0]
[null,{"$f":"\"=  Achats marchandises + Autres achats et charges externes\"","v":"=  Achats marchandises + Autres achats et charges externes"},null,null,{"$f":"IF($E$15=\"2020\",'4-Saisie comptes prévisionnels'!B10,0)","v":0},{"$f":"\"= Chiffre d'affaires \"","v":"= Chiffre d'affaires "},null,null,{"$f":"IF($I$15=\"2020\",'4-Saisie comptes prévisionnels'!E10,0)","v":0}]
[null,{"$f":"\"+  Salaires bruts\"","v":"+  Salaires bruts"},null,null,{"$f":"IF($E$15=\"2020\",'4-Saisie comptes prévisionnels'!B11,0)","v":0},{"$f":"\"+ Subventions \"","v":"+ Subventions "},null,null,{"$f":"IF($I$15=\"2020\",'4-Saisie comptes prévisionnels'!E11,0)","v":0}]
[null,{"$f":"\"+ Charges sociales\"","v":"+ Charges sociales"},null,null,{"$f":"IF($E$15=\"2020\",'4-Saisie comptes prévisionnels'!B12,0)","v":0},{"$f":"\"+ Aides aux postes \"","v":"+ Aides aux postes "},null,null,{"$f":"IF($I$15=\"2020\",'4-Saisie comptes prévisionnels'!E12,0)","v":0}]
[null,{"$f":"\"+ Dotations aux amortissements\"","v":"+ Dotations aux amortissements"},null,null,{"$f":"IF($E$15=\"2020\",'4-Saisie comptes prévisionnels'!B13,0)","v":0},{"$f":"\"+ Reprise sur Amort. & Prov.\"","v":"+ Reprise sur Amort. & Prov."},null,null,{"$f":"IF($I$15=\"2020\",'4-Saisie comptes prévisionnels'!E13,0)","v":0}]
[null,{"$f":"\"+ Autres charges d'exploitation/ Impots\"","v":"+ Autres charges d'exploitation/ Impots"},null,null,{"$f":"IF($E$15=\"2020\",'4-Saisie comptes prévisionnels'!B14,0)","v":0},{"$f":"\"+ Autres produits\"","v":"+ Autres produits"},null,null,{"$f":"IF($I$15=\"2020\",'4-Saisie comptes prévisionnels'!E14,0)","v":0}]
[null,{"$f":"\"+ Surcoût COVID19 \"","v":"+ Surcoût COVID19 "},null,null,{"$f":"IF($E$15=\"2020\",'4-Saisie comptes prévisionnels'!B15,0)","v":0},{"$f":"\"+ Aides liées au COVID19 \"","v":"+ Aides liées au COVID19 "},null,null,{"$f":"IF($I$15=\"2020\",'4-Saisie comptes prévisionnels'!E15,0)","v":0}]
[null,"Charges financières: ",null,null,{"$f":"IF($E$15=\"2020\",'4-Saisie comptes prévisionnels'!B16,0)","v":0},"Produits financiers: ",null,null,{"$f":"IF($I$15=\"2020\",'4-Saisie comptes prévisionnels'!E16,0)","v":0}]
[null,"Charges exceptionnelles: ",null,null,{"$f":"IF($E$15=\"2020\",'4-Saisie comptes prévisionnels'!B17,0)","v":0},"Produits exceptionnels: ",null,null,{"$f":"IF($I$15=\"2020\",'4-Saisie comptes prévisionnels'!E17,0)","v":0}]
[null,"dont VCEAC",null,null,{"$f":"IF($E$15=\"2020\",'4-Saisie comptes prévisionnels'!B18,0)","v":0},"dont quote part de subvention virée au résultat",null,null,{"$f":"IF($I$15=\"2020\",'4-Saisie comptes prévisionnels'!E18,0)","v":0}]
[null,"dont charges s/ex. antérieurs",null,null,{"$f":"IF($E$15=\"2020\",'4-Saisie comptes prévisionnels'!B19,0)","v":0},"dont PCEA",null,null,{"$f":"IF($I$15=\"2020\",'4-Saisie comptes prévisionnels'!E19,0)","v":0}]
[null,"Autres (impôts sociétés): ",null,null,{"$f":"IF($E$15=\"2020\",'4-Saisie comptes prévisionnels'!B20,0)","v":0},"Autres (report des ressources): ",null,null,{"$f":"IF($I$15=\"2020\",'4-Saisie comptes prévisionnels'!E20,0)","v":0}]
[]
[null,"Résultat d'exploitation",{"$f":"G16-C16","v":0},{"$f":"H16-D16","v":0},{"$f":"I16-E16","v":0},{"$f":"IF('2-Présentation de la structure '!J14=2020,'3-Saisie des comptes passés'!K29,\"\")","v":""},null,null,null,null,"Vos comptes de 2020 sont déjà arrêtés et/ou certifiés, alors saisir directement le compte de résultat de 2020 dans l'onglet \"4-Saisie comptes prévisionnels\""]
[null,"Résultat net",{"$f":"G16+G23+G24+G27-C16-C23-C24-C27","v":0},{"$f":"H16+H23+H24+H27-D16-D23-D24-D27","v":0},{"$f":"I16+I23+I24+I27-E16-E23-E24-E27","v":0}]
[]
[null,"CAF",{"$f":"C30+C20-G25","v":0},{"$f":"D30+D20-H25","v":0},{"$f":"E30+E20-I25","v":0}]
[]
[]
[null,null,{"$f":"C15","v":2018},{"$f":"D15","v":2019},{"$f":"IF('2-Présentation de la structure '!J14=2020,\"2020\",\"\")","v":""}]
[null,"Endettemt M/LT sur FDS PROPRES",{"$f":"IF(G5<0,\"FP. Négatif\",IF(G7>0,G7/G5,0))","v":0},{"$f":"IF(H5<0,\"FP. Négatif\",IF(H7>0,H7/H5,0))","v":0},{"$f":"IF(E35=\"\",\"\",IF(I5<0,\"FP. Négatif\",IF(I7>0,I7/I5,0)))","v":""}]
[null,"ENDET à + d'un an/CAF (en année)",{"$f":"G7/C32","v":{"$error":"#DIV/0!"}},{"$f":"H7/D32","v":{"$error":"#DIV/0!"}},{"$f":"IF(E35=\"\",\"\",(I7/E32))","v":""}]
[null,"ENDET global/CAF",{"$f":"(G7+G8)/C32","v":{"$error":"#DIV/0!"}},{"$f":"(H7+H8)/D32","v":{"$error":"#DIV/0!"}},{"$f":"IF(E35=\"\",\"\",((I7+I8)/E32))","v":""}]
[]
[null,"ENDETTEMENT Futur €"]
[null,null,{"$f":"IF(E35=\"\",\"2020 Prévi\",\"\")","v":"2020 Prévi"},"2021 Prévi"]
[null,"CAF",{"$f":"IF(C41=\"\",\"\",'4-Saisie comptes prévisionnels'!B25)","v":0},{"$f":"'4-Saisie comptes prévisionnels'!C25","v":0}]
[null,"Rbts des emprunts passés",{"$f":"IF(C41=\"\",\"\",'5-Impact COVID19'!L57)","v":0},{"$f":"'5-Impact COVID19'!M57","v":0}]
[null,"Mesures COVID19 - Reports échéances",{"$f":"IF(C41=\"\",\"\",'5-Impact COVID19'!J74)","v":0},{"$f":"'5-Impact COVID19'!L74","v":0}]
[null,"Capacité d'emprunt avant prêt COVID19",{"$f":"IF(C41=\"\",\"\",IF(C42-C43+C44>0,C42-C43+C44,0))","v":0},{"$f":"IF(D42-D43+D44>0,D42-D43+D44,0)","v":0}]
[null,"Rbts des nouveaux prêts COVID19",{"$f":"IF(C41=\"\",\"\",'5-Impact COVID19'!J68)","v":0},{"$f":"'5-Impact COVID19'!L68","v":0}]
[null,"Capacité d'emprunt restante",{"$f":"IF(C41=\"\",\"\",IF(C42-C43+C44-C46>=0,C42-C43+C44-C46,\"Grave\"))","v":0},{"$f":"IF(D42-D43-D46>=0,D42-D43-D46,\"Grave\")","v":0}]

{"sheet":"4-Saisie comptes prévisionnels","index":5,"n_rows":25,"n_cols":7,"rows_kept":25,"cut":false,"hidden":false,"merged":[[0,0,0,5],[6,0,6,2],[6,3,6,5],[3,0,3,3],[4,0,4,3],[2,2,2,5]]}
["Compte de résultat 2020 et 2021 (en €)"]
[]
["Pour les demandes déposées après le 01/01/2021",null,{"$f":"IF('2-Présentation de la structure '!J14=2020,G3,\"\")","v":""},null,null,null,"Attention : Vous avez indiqué en page \"présentation de la structure\" que votre dernier exercice clôturé est celui de 2020. Normalement, vous devez répondre \"oui\" aux deux questions ci-dessous. Sinon, changer l'information dans la page \"Présentation de la structure\" "]
["Vos comptes 2020, ont-ils été arrêtés lors de votre AG de 2021 ?",null,null,null,"Réponse",null,"choisir dans liste déroulante"]
["Les chiffres de 2020 ci-dessous sont produits à partir de votre arrêté comptable de 2020 ?",null,null,null,"Réponse",null,"choisir dans liste déroulante"]
[]
["Charges",null,null,"Produits"]
[null,2020,2021,null,2020,2021]
["Charges d'exploitation :",{"$f":"B10+B11+B12+B13+B14+B15","v":0},{"$f":"C10+C11+C12+C13+C14+C15","v":0},"Produits d'exploitation (hors aides liées au COVID19) :",{"$f":"E10+E11+E12+E13+E14+E15","v":0},{"$f":"F10+F11+F12+F13+F14+F15","v":0},"Remplir l'onglet suivant \"impact covid19\""]
[{"$f":"\"=  Achats marchandises + Autres achats et charges externes\"","v":"=  Achats marchandises + Autres achats et charges externes"},null,null,{"$f":"\"= Chiffre d'affaires \"","v":"= Chiffre d'affaires "},{"$f":"+'5-Impact COVID19'!D4","v":0},{"$f":"+'5-Impact COVID19'!D5","v":0},"Remplir l'onglet suivant \"impact covid19\""]
[{"$f":"\"+  Salaires bruts\"","v":"+  Salaires bruts"},null,null,{"$f":"\"+ Subventions \"","v":"+ Subventions "},{"$f":"+'5-Impact COVID19'!E17","v":0},{"$f":"+'5-Impact COVID19'!F17","v":0},"Remplir l'onglet suivant \"impact covid19\""]
[{"$f":"\"+ Charges sociales\"","v":"+ Charges sociales"},null,null,{"$f":"\"+ Aides aux postes \"","v":"+ Aides aux postes "},{"$f":"'5-Impact COVID19'!E23","v":0},{"$f":"'5-Impact COVID19'!F23","v":0},"Remplir l'onglet suivant \"impact covid19\""]
[{"$f":"\"+ Dotations aux amortissements\"","v":"+ Dotations aux amortissements"},null,null,{"$f":"\"+ Reprise sur Amort. & Prov.\"","v":"+ Reprise sur Amort. & Prov."}]
[{"$f":"\"+ Autres charges/ Impots\"","v":"+ Autres charges/ Impots"},null,null,{"$f":"\"+ Autres produits\"","v":"+ Autres produits"}]
[{"$f":"\"+ Surcoût COVID19 \"","v":"+ Surcoût COVID19 "},{"$f":"'5-Impact COVID19'!D40","v":0},{"$f":"'5-Impact COVID19'!D41","v":0},{"$f":"\"+ Aides liées au COVID19 \"","v":"+ Aides liées au COVID19 "},{"$f":"'5-Impact COVID19'!E35","v":0},{"$f":"'5-Impact COVID19'!G35","v":0},"Remplir l'onglet suivant \"impact covid19\""]
["Charges financières :",null,null,"Produits financiers :"]
["Charges exceptionnelles :",null,null,"Produits exceptionnels :"]
["dont VCEAC",null,null,"dont quote part de subvention virée au résultat"]
["dont charges s/ex. antérieurs",null,null,"dont PCEA"]
["Autres (impôts sociétés) :",null,null,"Autres (report des ressources) :"]
[]
["Résultat d'exploitation",{"$f":"E9-B9","v":0},{"$f":"F9-C9","v":0}]
["Résultat net",{"$f":"E9+E16+E17+E20-B9-B16-B17-B20","v":0},{"$f":"F9+F16+F17+F20-C9-C16-C17-C20","v":0}]
[]
["CAF",{"$f":"B23+B13-E18","v":0},{"$f":"C23+C13-F18","v":0}]

{"sheet":"5-Impact COVID19","index":6,"n_rows":93,"n_cols":14,"rows_kept":93,"cut":false,"hidden":false,"merged":[[75,12,75,13],[76,12,76,13],[38,4,38,5],[39,4,39,5],[40,4,40,5],[76,3,76,4],[76,1,76,2],[75,1,75,2],[72,1,72,2],[73,1,73,2],[74,1,74,2],[72,3,72,4],[72,5,72,6],[72,7,72,8],[73,7,73,8],[76,7,76,8],[75,5,75,6],[76,5,76,6],[75,7,75,8],[73,3,73,4],[74,3,74,4],[75,3,75,4],[60,13,61,14],[70,1,71,13],[0,1,34,1],[37,1,41,1],[66,7,66,8],[65,7,65,8],[62,7,62,8],[60,7,61,8],[60,5,61,5],[60,2,61,2],[55,4,55,5],[55,7,55,8],[26,2,26,6],[60,1,61,1],[60,3,61,3],[60,4,61,4],[60,6,61,6],[58,1,58,14],[51,4,51,5],[51,7,51,8],[51,13,51,14],[0,2,0,5],[6,2,6,5],[20,2,20,5],[21,2,22,2],[37,2,37,5],[74,7,74,8],[73,5,73,6],[74,5,74,6],[67,11,67,12],[66,11,66,12],[65,11,65,12],[62,11,62,12],[60,11,61,12],[67,9,67,10],[66,9,66,10],[65,9,65,10],[62,9,62,10],[60,9,61,10],[63,9,63,10],[73,12,73,13],[74,12,74,13],[52,7,52,8],[52,13,52,14],[53,4,53,5],[53,7,53,8],[53,13,53,14],[54,4,54,5],[54,7,54,8],[54,13,54,14],[72,12,72,13],[64,9,64,10],[63,11,63,12],[64,11,64,12],[66,13,66,14],[62,13,62,14],[65,13,65,14],[56,4,56,6],[59,1,59,14],[44,1,44,14],[48,4,48,5],[48,7,48,8],[48,13,48,14],[49,4,49,5],[49,7,49,8],[49,13,49,14],[92,1,93,14],[94,1,100,14],[50,4,50,5],[50,7,50,8],[50,13,50,14],[45,1,45,14],[46,1,47,1],[46,2,47,2],[46,3,47,3],[46,4,47,5],[46,6,47,6],[46,7,47,8],[46,13,47,14],[81,1,89,14],[79,1,80,14],[55,13,55,14],[52,4,52,5]]}
[null,"DETAIL DES PRODUITS D'EXPLOITATION","CHIFFRE D'AFFAIRES FACTURÉ HORS TAXE (en €)"]
[null,null,"Années ","CA ","écart en €","%"]
[null,null,2019,{"$f":"'3-Saisie des comptes passés'!H17","v":0},{"$f":"IF('3-Saisie des comptes passés'!G17=0,\"\",'3-Saisie des comptes passés'!H17-'3-Saisie des comptes passés'!G17)","v":""},{"$f":"IF(E3=\"\",\"\",('3-Saisie des comptes passés'!H17-'3-Saisie des comptes passés'!G17)/'3-Saisie des comptes passés'!H17)","v":""}]
[null,null,2020,null,{"$f":"D4-D3","v":0},{"$f":"(D4-D3)/D3","v":{"$error":"#DIV/0!"}}]
[null,null,2021,null,{"$f":"D5-D4","v":0},{"$f":"(D5-D4)/D4","v":{"$error":"#DIV/0!"}}]
[]
[null,null,"MONTANT DES SUBVENTIONS et COTISATIONS (en €)"]
[null,null,"Nom des financeurs ",{"$f":"'3-Saisie des comptes passés'!D4","v":2019},2020,2021]
[]
[]
[]
[]
[]
[]
[]
[]
[null,null,"Total",{"$f":"SUM(D9:D16)","v":0},{"$f":"SUM(E9:E16)","v":0},0]
[null,null,"Ecart ",null,{"$f":"E17-D17","v":0},{"$f":"F17-E17","v":0}]
[null,null,"%",null,{"$f":"E18/D17","v":{"$error":"#DIV/0!"}},{"$f":"F18/E17","v":{"$error":"#DIV/0!"}}]
[]
[null,null,"MONTANTS DES AIDES AUX POSTES (en €)"]
[null,null,"Montant des aides aux postes",{"$f":"'3-Saisie des comptes passés'!D4","v":2019},2020,2021]
[]
[null,null,"Ecart ",null,{"$f":"E23-D23","v":0},{"$f":"F23-E23","v":0}]
[null,null,"%",null,{"$f":"E24/D23","v":{"$error":"#DIV/0!"}},{"$f":"F24/E23","v":{"$error":"#DIV/0!"}}]
[]
[null,null,"AIDES LIEES AU COVID19 (en €)"]
[null,null,"Type",{"$f":"'3-Saisie des comptes passés'!D4","v":2019},2020,"Statut de la demande",2021]
[null,null,"Indemination chômage partiel"]
[null,null,"Fonds de solidarité ÉTAT"]
[null,null,"Autres, précisez"]
[null,null,"Autres, précisez"]
[null,null,"Autres, précisez"]
[]
[null,null,"Total",{"$f":"SUM(D29:D34)","v":0},{"$f":"SUM(E29:E34)","v":0},null,0]
[]
[]
[null,"CHARGES COVID19","SURCOÛTS LIÉS AU COVID-19 (en €)"]
[null,null,"Années ","€","Détail postes de dépense"]
[null,null,2020,null,"Ex : masque…"]
[null,null,2021]
[null,null,"Total ",{"$f":"SUM(D40:D41)","v":0}]
[]
[]
[null,"NIVEAU D'ENDETTEMENT DE LA STRUCTURE 2019 "]
[null,"Pouvez-vous lister les aides et/ou prêts dont vous avez bénéficié et qui sont en cours de remboursement ?         "]
[null,"Objet de financement (Invest/Tréso)","Montant initial","Montant de l'échéance ","Périodicité des échéances\n(choisir dans la liste déroulante)",null,"Durée\n(en années)","Date de fin\n(mm/aa)",null,2018,2019,"Remboursements 2020","Remboursements 2021","Etablissement Bancaire"]
[null,null,null,null,null,null,null,null,null,"Remboursements part capital","Remboursements part capital","Remboursements part capital","Remboursements part capital"]
[]
[]
[]
[]
[]
[]
[]
[]
[null,null,null,null,null,null,null,null,null,{"$f":"SUM(J49:J56)","v":0},{"$f":"SUM(K49:K56)","v":0},{"$f":"SUM(L49:L56)","v":0},{"$f":"SUM(M49:M56)","v":0}]
[]
[null,"NOUVEAUX EMPRUNTS DE LA STRUCTURE 2020 "]
[null,"Pouvez-vous lister les aides et/ou prêts dont vous avez bénéficié et qui sont en cours de remboursement ?          *Saisie OBLIGATOIRE"]
[null,"Objet de financement (Invest/Tréso)","Type de prêt\n(choisir dans la liste déroulante)","Montant Initial ","Montant de l'échéance","Périodicité des échéances\n(choisir dans la liste déroulante)","Durée\n(en années)","Date de déblocage\n(mm/aa)",null,"Remboursements (part capital)\n2020",null,"Remboursements (part capital) 2021",null,"Etablissement Bancaire"]
[]
[]
[]
[]
[]
[]
[null,null,null,{"$f":"SUM(D63:D67)","v":0},null,null,null,null,null,{"$f":"SUM(J63:J67)","v":0},null,{"$f":"SUM(L63:L67)","v":0}]
[]
[]
[null,"LES MESURES MISES EN PLACE"]
[]
[null,"Mesures principales",null,"Montant Total",null,"Modalité",null,"Commentaires  ",null,"Affecté en 2020","Statut de la demande","Affecté en 2021","Statut de la demande"]
[null,"Report d'échéances prêts ",null,null,null,"Ex : Report de 8 mois "]
[null,"Report de loyers des locaux commerciaux ","Report loyers locaux commerciaux"]
[null,"Autres: "]
[]
[null,null,null,null,null,null,null,null,null,{"$f":"SUM(J74:J77)","v":0},null,{"$f":"SUM(L74:L77)","v":0}]
[]
[null,"DĖTAILS / COMMENTAIRES / ĖLĖMENTS IMPORTANTS A SIGNALER"]
[]
[]
[]
[]
[]
[]
[]
[]
[]
[]
[]
[]
[null,"Signature du président et/ou du dirigeant/ Indication de la date de dépôt"]

{"sheet":"Plan de trésorerie","index":7,"n_rows":30,"n_cols":15,"rows_kept":30,"cut":false,"hidden":false,"merged":[]}
[]
[null,"Janvier","Février","Mars","Avril","Mai","Juin","Juillet","Août","Septembre","Octobre","Novembre","Décembre",null,"TOTAL"]
["Encaissements"]
["CA 1",null,null,null,null,null,null,null,null,null,null,null,null,null,{"$f":"SUM(B4:M4)","v":0}]
["CA 2",null,null,null,null,null,null,null,null,null,null,null,null,null,0]
["CA 3",null,null,null,null,null,null,null,null,null,null,null,null,null,0]
["CA 4",null,null,null,null,null,null,null,null,null,null,null,null,null,0]
["CA 5",null,null,null,null,null,null,null,null,null,null,null,null,null,0]
["Subventions :",null,null,null,null,null,null,null,null,null,null,null,null,null,{"$f":"SUM(B9:M9)","v":0}]
["Subventions :",null,null,null,null,null,null,null,null,null,null,null,null,null,{"$f":"SUM(B10:M10)","v":0}]
["Financement investissement (banque, France Active Aquitaine, fondations...)",null,null,null,null,null,null,null,null,null,null,null,null,null,0]
[]
["Total",{"$f":"SUM(B4:B11)","v":0},0,0,0,0,0,0,0,0,0,0,0,null,{"$f":"SUM(O4:O11)","v":0}]
[]
["Décaissements"]
["Achats de MP ou marchandises",null,null,null,null,null,null,null,null,null,null,null,null,null,{"$f":"SUM(B16:M16)","v":0}]
["Autres achats et charges externes",null,null,null,null,null,null,null,null,null,null,null,null,null,{"$f":"SUM(B17:M17)","v":0}]
["Prestation externes",null,null,null,null,null,null,null,null,null,null,null,null,null,0]
["Impôts et taxes",null,null,null,null,null,null,null,null,null,null,null,null,null,0]
["Salaires nets",null,null,null,null,null,null,null,null,null,null,null,null,null,0]
["Charges sociales patronales et salariales",null,null,null,null,null,null,null,null,null,null,null,null,null,0]
["Achat investissement TTC",null,null,null,null,null,null,null,null,null,null,null,null,null,0]
["Remboursement crédit ",null,null,null,null,null,null,null,null,null,null,null,null,null,0]
["TVA à payer",null,null,null,null,null,null,null,null,null,null,null,null,null,{"$f":"SUM(B24:M24)","v":0}]
[]
["Total",{"$f":"SUM(B17:B23)","v":0},{"$f":"SUM(C17:C23)","v":0},0,0,0,0,0,0,0,0,0,0,null,{"$f":"SUM(O16:O24)","v":0}]
[]
["Solde du mois",{"$f":"B13-B26","v":0},0,0,0,0,0,0,0,0,0,0,0]
["Solde antérieur",null,{"$f":"B30","v":0},0,0,0,0,0,0,0,0,0,0]
["Soldes cumulés",null,{"$f":"SUM(C28:C29)","v":0},{"$f":"SUM(D28:D29)","v":0},{"$f":"SUM(E28:E29)","v":0},{"$f":"SUM(F28:F29)","v":0},{"$f":"SUM(G28:G29)","v":0},{"$f":"SUM(H28:H29)","v":0},0,0,0,0,0,null,{"$f":"M30","v":0}]

{"sheet":"Synthèse","index":8,"n_rows":133,"n_cols":12,"rows_kept":133,"cut":false,"hidden":true,"merged":[[29,6,29,8],[30,6,30,8],[31,6,31,8],[28,6,28,8],[93,1,93,3],[77,6,77,7],[76,6,76,7],[75,6,75,7],[73,1,73,11],[47,1,47,11],[48,1,51,11],[65,1,65,11],[66,1,69,11],[55,1,55,2],[54,1,54,2],[53,1,53,2],[78,6,78,7],[86,6,86,7],[57,1,57,2],[82,6,82,7],[81,6,81,7],[80,6,80,7],[79,6,79,7],[85,6,85,7],[84,6,84,7],[83,6,83,7],[62,1,62,3],[61,1,61,3],[71,1,71,11],[63,1,63,3],[74,6,74,11],[74,1,74,5],[120,1,120,11],[121,1,124,11],[127,1,130,11],[126,1,126,11],[87,6,87,7],[96,1,96,3],[95,1,95,3],[94,1,94,3],[98,1,98,2],[5,12,5,15],[2,8,2,11],[3,8,3,11],[4,8,4,11],[5,8,5,11],[2,12,2,15],[3,12,3,15],[4,12,4,15],[34,1,34,11],[5,5,5,7],[6,5,6,7],[6,8,6,11],[60,1,60,3],[5,3,5,4],[5,1,5,2],[56,1,56,2],[6,3,6,4],[6,1,6,2],[45,1,45,2],[44,1,44,2],[43,1,43,2],[42,1,42,2],[41,1,41,2],[58,1,58,2],[0,1,0,11],[13,1,13,11],[4,5,4,7],[3,5,3,7],[2,5,2,7],[1,1,1,11],[4,3,4,4],[3,3,3,4],[2,3,2,4],[2,1,2,2],[3,1,3,2],[4,1,4,2],[8,1,8,11],[9,1,11,11]]}
[null,"SYNTHÈSE"]
[null,{"$f":"NOW()","v":"2021-04-15T17:50:17.880"}]
[null,"Nom de la structure",null,{"$f":"'2-Présentation de la structure '!C4","v":0},null,"Secteur d'activité ",null,null,{"$f":"'2-Présentation de la structure '!J12","v":0}]
[null,"Nom du Représentant Légal",null,{"$f":"'2-Présentation de la structure '!C6","v":0},null,"Détail des activités",null,null,{"$f":"'2-Présentation de la structure '!J13","v":0}]
[null,"Département du siège social",null,{"$f":"'2-Présentation de la structure '!J11","v":0},null,"Dernier exercice clos",null,null,{"$f":"M10","v":0}]
[null,"Numéro SIREN/SIRET",null,{"$f":"'2-Présentation de la structure '!J10","v":0},null,"Date de création",null,null,{"$f":"'2-Présentation de la structure '!C5","v":"00:00:00"}]
[null,"Nombre de ETP",null,{"$f":"'2-Présentation de la structure '!C16","v":0},null,"Territoire d'intervention de la structure",null,null,{"$f":"'2-Présentation de la structure '!J15","v":0}]
[]
[null,"Impact de la crise sanitaire"]
[]
[]
[]
[]
[" ","ÉLIGIBILITÉ ET CALCUL DU MONTANT DE L'AIDE"]
[null,"Montant perte d'exploitation 2020",{"$f":"'4-Saisie comptes prévisionnels'!B22","v":0}]
[null,"Montant baisse des produits d'exploitation ",{"$f":"'4-Saisie comptes prévisionnels'!E9-'3-Saisie des comptes passés'!H16","v":0}]
[null,"Variation vs. 2019 ",{"$f":"C16/'3-Saisie des comptes passés'!H16","v":{"$error":"#DIV/0!"}}]
[null,"Montant FP au 31/12/19",{"$f":"'3-Saisie des comptes passés'!H5","v":0}]
[null,"Montant FP au 31/12/20",{"$f":"'3-Saisie des comptes passés'!I5","v":0}]
[null,"Référence fonds propres pour règlement : ",{"$f":"IF(I5=2020,C19,C18)","v":0}]
[null,"Nombre de salariés en ETP",{"$f":"D7","v":0}]
[null,"Eligibilité"]
[null,"Fonds propres positifs",{"$f":"IF(C20>=0, \"OUI\",\"NON\")","v":"OUI"}]
[null,"Baisse d'activité > 30% ",{"$f":"IF(C17<-30%, \"OUI\",\"NON\")","v":{"$error":"#DIV/0!"}}]
[]
[null,"Calcul aide "]
[]
[null,"Taille de la structure ","Entre 1 et < 6 salaries","de 6 à 20 salariés","> 20 salariés",null,"Les impacts de la crise sanitaire COVID 19",null,null,2019,2020,2021]
[null,"Effectif (palier)",{"$f":"IF(C21=0,0,IF(C21<6,1,0))","v":0},{"$f":"IF(C21<6,0,IF(C21>20,0,1))","v":0},{"$f":"IF(C21>20,1,0)","v":0},null,"Evolution du Chiffre d'Affaires ",null,null,{"$f":"'5-Impact COVID19'!D3","v":0},{"$f":"'5-Impact COVID19'!D4","v":0},{"$f":"'5-Impact COVID19'!D5","v":0}]
[null,"Seuil (euros)",3000,4000,5000,null,"Evolution des produits d'exploitation",null,null,{"$f":"'3-Saisie des comptes passés'!H16","v":0},{"$f":"'4-Saisie comptes prévisionnels'!E9","v":0},{"$f":"'4-Saisie comptes prévisionnels'!F9","v":0}]
[null,"Plafond (euros)",15000,30000,45000,null,"Aides liées au COVID19 ",null,null,null,{"$f":"'5-Impact COVID19'!E35","v":0},{"$f":"'5-Impact COVID19'!G35","v":0}]
[null,"Base de calcul ",{"$f":"IF(C15<0,ABS(C15/2),0)","v":0},{"$f":"IF(C15<0,ABS(C15/2),0)","v":0},{"$f":"IF(C15<0,ABS(C15/2),0)","v":0},null,"Surcoûts liés au COVID19",null,null,null,{"$f":"'5-Impact COVID19'!D40","v":0},{"$f":"'5-Impact COVID19'!D41","v":0}]
[null,"Montant calculé aide ",{"$f":"IF(C32<3000,0,IF(C32>C31,C31*C29,C32*C29) )","v":0},{"$f":"IF(D32<3000,0,IF(D32>D31,D31*D29,D32*D29) )","v":0},{"$f":"IF(E32<3000,0,IF(E32>E31,E31*E29,E32*E29) )","v":0}]
[]
[null,"STRUCTURATION FINANCIÈRE"]
[]
[null,"Indicateurs financiers",{"$f":"'3-Saisie des comptes passés'!C4","v":2018},{"$f":"'3-Saisie des comptes passés'!D4","v":2019},{"$f":"IF('2-Présentation de la structure '!J14=2020,\"2020\",\"Cpte 2020 pas arrêté\")","v":"Cpte 2020 pas arrêté"}]
[null,"Fonds de roulement (FR)",{"$f":"'3-Saisie des comptes passés'!G5+'3-Saisie des comptes passés'!G7-'3-Saisie des comptes passés'!C5","v":0},{"$f":"'3-Saisie des comptes passés'!H5+'3-Saisie des comptes passés'!H7-'3-Saisie des comptes passés'!D5","v":0},{"$f":"IF(E37=\"Cpte 2020 pas arrêté\",\"/\",'3-Saisie des comptes passés'!I5+'3-Saisie des comptes passés'!I7-'3-Saisie des comptes passés'!E5)","v":"/"}]
[null,"Besoin en fonds de roulement (BFR)",{"$f":"'3-Saisie des comptes passés'!C6-'3-Saisie des comptes passés'!C7-'3-Saisie des comptes passés'!G9","v":0},{"$f":"'3-Saisie des comptes passés'!D6-'3-Saisie des comptes passés'!D7-'3-Saisie des comptes passés'!H9","v":0},{"$f":"IF(E37=\"Cpte 2020 pas arrêté\",\"/\",'3-Saisie des comptes passés'!E6-'3-Saisie des comptes passés'!E7-'3-Saisie des comptes passés'!I9)","v":"/"}]
[null,"Trésorerie (T)",{"$f":"'3-Saisie des comptes passés'!C7-'3-Saisie des comptes passés'!G8","v":0},{"$f":"'3-Saisie des comptes passés'!D7-'3-Saisie des comptes passés'!H8","v":0},{"$f":"IF(E37=\"Cpte 2020 pas arrêté\",\"/\",'3-Saisie des comptes passés'!E7-'3-Saisie des comptes passés'!I8)","v":"/"}]
[]
[null,"Analyse au niveau du bilan",null,{"$f":"D37","v":2019},{"$f":"IF('2-Présentation de la structure '!J14=2020,\"2020\",\"Cpte 2020 pas arrêté\")","v":"Cpte 2020 pas arrêté"}]
[null,"Fonds propres dernier exercice ",null,{"$f":"'3-Saisie des comptes passés'!H5","v":0},{"$f":"IF(E37=\"Cpte 2020 pas arrêté\",\"/\",'3-Saisie des comptes passés'!I5)","v":"/"}]
[null,"Variation des fonds propres sur les 2 derniers exercices ",null,{"$f":"('3-Saisie des comptes passés'!H5-'3-Saisie des comptes passés'!G5)/'3-Saisie des comptes passés'!G5","v":{"$error":"#DIV/0!"}},{"$f":"IF(E37=\"Cpte 2020 pas arrêté\",\"/\",(('3-Saisie des comptes passés'!I5-'3-Saisie des comptes passés'!H5)/'3-Saisie des comptes passés'!H5))","v":"/"}]
[null,"Fonds de roulement en jours de budget d'exploitation\n(< 0 = très grave ; < 15 = grave ; < 30 = préoccupant ; > 30 = Ok)",null,{"$f":"('3-Saisie des comptes passés'!H5+'3-Saisie des comptes passés'!H7-'3-Saisie des comptes passés'!D5)/'3-Saisie des comptes passés'!H16*360","v":{"$error":"#DIV/0!"}},{"$f":"IF(E37=\"Cpte 2020 pas arrêté\",\"/\",(('3-Saisie des comptes passés'!I5+'3-Saisie des comptes passés'!I7-'3-Saisie des comptes passés'!E5)/'3-Saisie des comptes passés'!I16*360))","v":"/"}]
[null,"Trésorerie en jours de budget d'exploitation \n(< 0 = très grave ; < 10 = grave ; < 20 = préoccupant ; > 20 = Ok)",null,{"$f":"('3-Saisie des comptes passés'!D7-'3-Saisie des comptes passés'!H8)/'3-Saisie des comptes passés'!H16*365","v":{"$error":"#DIV/0!"}},{"$f":"IF(E37=\"Cpte 2020 pas arrêté\",\"/\",(('3-Saisie des comptes passés'!E7-'3-Saisie des comptes passés'!I8)/'3-Saisie des comptes passés'!I16*365))","v":"/"}]
[]
[null,"Analyse financière:"]
[]
[]
[]
[]
[]
[null,"Ratios d'endettement",null,{"$f":"'3-Saisie des comptes passés'!C4","v":2018},{"$f":"'3-Saisie des comptes passés'!D4","v":2019},"Moyenne 2018-2019",{"$f":"IF('2-Présentation de la structure '!J14=2020,'2-Présentation de la structure '!J14,\"2020 Prévi\")","v":"2020 Prévi"},"2021 Prévi"]
[null,"CAF (Capacité d'autofinancement)",null,{"$f":"'3-Saisie des comptes passés'!C32","v":0},{"$f":"'3-Saisie des comptes passés'!D32","v":0},{"$f":"(D55+E55)/2","v":0},{"$f":"IF(G54=2020,'3-Saisie des comptes passés'!E32,'4-Saisie comptes prévisionnels'!B25)","v":0},{"$f":"'4-Saisie comptes prévisionnels'!C25","v":0}]
[null,"Remboursements des Emprunts MLT (y compris COVID-19)",null,{"$f":"'5-Impact COVID19'!J57","v":0},{"$f":"'5-Impact COVID19'!K57","v":0},{"$f":"(D56+E56)/2","v":0},{"$f":"'5-Impact COVID19'!L57+'5-Impact COVID19'!J68","v":0},{"$f":"'5-Impact COVID19'!M57+'5-Impact COVID19'!L68","v":0}]
[null,"CAF disponible",null,{"$f":"IFERROR(IF(D55-D56<0,\"0\",D55-D56),\"-\")","v":0},{"$f":"E55-E56","v":0},{"$f":"(D57+E57)/2","v":0},{"$f":"IFERROR(IF(G55-G56<0,\"0\",G55-G56),\"-\")","v":0},{"$f":"IF(H55-H56<0,\"0\",H55-H56)","v":0}]
[null,"Endettemt M/LT sur FDS PROPRES",null,{"$f":"'3-Saisie des comptes passés'!C36","v":0},{"$f":"'3-Saisie des comptes passés'!D36","v":0},{"$f":"(D58+E58)/2","v":0},{"$f":"IF(G54=2020,'3-Saisie des comptes passés'!E36,(('3-Saisie des comptes passés'!H7+'5-Impact COVID19'!D68)-G56)/('3-Saisie des comptes passés'!H5+'4-Saisie comptes prévisionnels'!B23))","v":{"$error":"#DIV/0!"}},{"$f":"(('3-Saisie des comptes passés'!H7+'5-Impact COVID19'!D68)-G56-H56)/('3-Saisie des comptes passés'!H5+'4-Saisie comptes prévisionnels'!B23+'4-Saisie comptes prévisionnels'!C23)","v":{"$error":"#DIV/0!"}}]
[null,"ENDET à + d'un an/CAF (en année)",null,{"$f":"IFERROR('3-Saisie des comptes passés'!C37,\"0\")","v":"0"},{"$f":"IFERROR('3-Saisie des comptes passés'!D37,\"0\")","v":"0"},{"$f":"(D59+E59)/2","v":0},{"$f":"IF(G54=2020,'3-Saisie des comptes passés'!E37,(('3-Saisie des comptes passés'!H7+'5-Impact COVID19'!D68)-G56)/G55)","v":{"$error":"#DIV/0!"}},{"$f":"(('3-Saisie des comptes passés'!H7+'5-Impact COVID19'!D68)-G56-H56)/H55","v":{"$error":"#DIV/0!"}}]
[null,null,null,null,null,null,null,"Hors nouveaux emprunts"]
[null,"Analyse de l'endettement",null,null,{"$f":"E54","v":2019},null,{"$f":"G54","v":"2020 Prévi"}]
[null,"Capacité à rembourser ses dettes financières MLT S/ le dernier exercice clos\n(>= 100% Très Grave; > 70 % = Grave; > 50 % = Préoccupant; < 50 % = OK)",null,null,{"$f":"E56/E55","v":{"$error":"#DIV/0!"}},null,{"$f":"IF(G61=2020,G56/G55,\"/\")","v":"/"}]
[null,"Capacité à faire face à ses dettes financières MLT à partir de 2020\n(>= 100% Très Grave; > 70 % =  Grave; > 50 % = Préoccupant; < 50 % = OK)",null,null,{"$f":"G56/G55","v":{"$error":"#DIV/0!"}},null,{"$f":"IF(G61=2020,H56/H55,\"/\")","v":"/"},"à partir de 2021"]
[null,"Taux d'endettement net sur le dernier exercice clos\n(>100% = Grave ; < 100% = OK)",null,null,{"$f":"E58","v":0},null,{"$f":"IF(G61=2020,G58,\"/\")","v":"/"}]
[]
[null,"Commentaire ratios financiers : "]
[]
[]
[]
[]
[]
[null,"Modèle économique"]
[]
[null,"Compte de résultat en € "]
[null,"Charges",null,null,null,null,"Produits"]
[null,null,{"$f":"'3-Saisie des comptes passés'!C15","v":2018},{"$f":"'3-Saisie des comptes passés'!D15","v":2019},{"$f":"G54","v":"2020 Prévi"},{"$f":"H54","v":"2021 Prévi"},null,null,{"$f":"'3-Saisie des comptes passés'!G15","v":2018},{"$f":"'3-Saisie des comptes passés'!H15","v":2019},{"$f":"G54","v":"2020 Prévi"},{"$f":"H54","v":"2021 Prévi"}]
[null,"Charges d'exploitation (hors surcoût Covid19)",{"$f":"'3-Saisie des comptes passés'!C16","v":0},{"$f":"'3-Saisie des comptes passés'!D16","v":0},{"$f":"'4-Saisie comptes prévisionnels'!B9","v":0},{"$f":"'4-Saisie comptes prévisionnels'!C9","v":0},"Produits d'exploitation (hors aides Covid19)",null,{"$f":"'3-Saisie des comptes passés'!G16","v":0},{"$f":"'3-Saisie des comptes passés'!H16","v":0},{"$f":"'4-Saisie comptes prévisionnels'!E9","v":0},{"$f":"'4-Saisie comptes prévisionnels'!F9","v":0}]
[null,{"$f":"\"=  Achats marchandises + Autres achats et charges externes\"","v":"=  Achats marchandises + Autres achats et charges externes"},{"$f":"'3-Saisie des comptes passés'!C17","v":0},{"$f":"'3-Saisie des comptes passés'!D17","v":0},{"$f":"'4-Saisie comptes prévisionnels'!B10","v":0},{"$f":"'4-Saisie comptes prévisionnels'!C10","v":0},{"$f":"\"= Chiffre d'affaires \"","v":"= Chiffre d'affaires "},null,{"$f":"'3-Saisie des comptes passés'!G17","v":0},{"$f":"'3-Saisie des comptes passés'!H17","v":0},{"$f":"'4-Saisie comptes prévisionnels'!E10","v":0},{"$f":"'4-Saisie comptes prévisionnels'!F10","v":0}]
[null,{"$f":"\"+  Salaires bruts\"","v":"+  Salaires bruts"},{"$f":"'3-Saisie des comptes passés'!C18","v":0},{"$f":"'3-Saisie des comptes passés'!D18","v":0},{"$f":"'4-Saisie comptes prévisionnels'!B11","v":0},{"$f":"'4-Saisie comptes prévisionnels'!C11","v":0},{"$f":"\"+ Subventions \"","v":"+ Subventions "},null,{"$f":"'3-Saisie des comptes passés'!G18","v":0},{"$f":"'3-Saisie des comptes passés'!H18","v":0},{"$f":"'4-Saisie comptes prévisionnels'!E11","v":0},{"$f":"'4-Saisie comptes prévisionnels'!F11","v":0}]
[null,{"$f":"\"+ Charges sociales\"","v":"+ Charges sociales"},{"$f":"'3-Saisie des comptes passés'!C19","v":0},{"$f":"'3-Saisie des comptes passés'!D19","v":0},{"$f":"'4-Saisie comptes prévisionnels'!B12","v":0},{"$f":"'4-Saisie comptes prévisionnels'!C12","v":0},{"$f":"\"+ Aides aux postes \"","v":"+ Aides aux postes "},null,{"$f":"'3-Saisie des comptes passés'!G19","v":0},{"$f":"'3-Saisie des comptes passés'!H19","v":0},{"$f":"'4-Saisie comptes prévisionnels'!E12","v":0},{"$f":"'4-Saisie comptes prévisionnels'!F12","v":0}]
[null,{"$f":"\"+ Dotations aux amortissements\"","v":"+ Dotations aux amortissements"},{"$f":"'3-Saisie des comptes passés'!C20","v":0},{"$f":"'3-Saisie des comptes passés'!D20","v":0},{"$f":"'4-Saisie comptes prévisionnels'!B13","v":0},{"$f":"'4-Saisie comptes prévisionnels'!C13","v":0},{"$f":"\"+ Reprise sur Amort. & Prov.\"","v":"+ Reprise sur Amort. & Prov."},null,{"$f":"'3-Saisie des comptes passés'!G20","v":0},{"$f":"'3-Saisie des comptes passés'!H20","v":0},{"$f":"'4-Saisie comptes prévisionnels'!E13","v":0},{"$f":"'4-Saisie comptes prévisionnels'!F13","v":0}]
[null,{"$f":"\"+ Autres charges d'exploitation\"","v":"+ Autres charges d'exploitation"},{"$f":"'3-Saisie des comptes passés'!C21","v":0},{"$f":"'3-Saisie des comptes passés'!D21","v":0},{"$f":"'4-Saisie comptes prévisionnels'!B14","v":0},{"$f":"'4-Saisie comptes prévisionnels'!C14","v":0},{"$f":"\"+ Autres produits\"","v":"+ Autres produits"},null,{"$f":"'3-Saisie des comptes passés'!G21","v":0},{"$f":"'3-Saisie des comptes passés'!H21","v":0},{"$f":"'4-Saisie comptes prévisionnels'!E14","v":0},{"$f":"'4-Saisie comptes prévisionnels'!F14","v":0}]
[null,{"$f":"\"+ Surcoût COVID19 \"","v":"+ Surcoût COVID19 "},null,null,{"$f":"'4-Saisie comptes prévisionnels'!B15","v":0},{"$f":"'4-Saisie comptes prévisionnels'!C15","v":0},{"$f":"\"+ Aides liées au COVID19 \"","v":"+ Aides liées au COVID19 "},null,null,null,{"$f":"'4-Saisie comptes prévisionnels'!E15","v":0},{"$f":"'4-Saisie comptes prévisionnels'!F15","v":0}]
[null,"Charges financières: ",{"$f":"'3-Saisie des comptes passés'!C23","v":0},{"$f":"'3-Saisie des comptes passés'!D23","v":0},{"$f":"'4-Saisie comptes prévisionnels'!B16","v":0},{"$f":"'4-Saisie comptes prévisionnels'!C16","v":0},"Produits financiers: ",null,{"$f":"'3-Saisie des comptes passés'!G23","v":0},{"$f":"'3-Saisie des comptes passés'!H23","v":0},{"$f":"'4-Saisie comptes prévisionnels'!E16","v":0},{"$f":"'4-Saisie comptes prévisionnels'!F16","v":0}]
[null,"Charges exceptionnelles: ",{"$f":"'3-Saisie des comptes passés'!C24","v":0},{"$f":"'3-Saisie des comptes passés'!D24","v":0},{"$f":"'4-Saisie comptes prévisionnels'!B17","v":0},{"$f":"'4-Saisie comptes prévisionnels'!C17","v":0},"Produits exceptionnels: ",null,{"$f":"'3-Saisie des comptes passés'!G24","v":0},{"$f":"'3-Saisie des comptes passés'!H24","v":0},{"$f":"'4-Saisie comptes prévisionnels'!E17","v":0},{"$f":"'4-Saisie comptes prévisionnels'!F17","v":0}]
[null,"dont VCEAC",{"$f":"'3-Saisie des comptes passés'!C25","v":0},{"$f":"'3-Saisie des comptes passés'!D25","v":0},{"$f":"'4-Saisie comptes prévisionnels'!B18","v":0},{"$f":"'4-Saisie comptes prévisionnels'!C18","v":0},"dont quote part de subvention virée au résultat",null,{"$f":"'3-Saisie des comptes passés'!G25","v":0},{"$f":"'3-Saisie des comptes passés'!H25","v":0},{"$f":"'4-Saisie comptes prévisionnels'!E18","v":0},{"$f":"'4-Saisie comptes prévisionnels'!F18","v":0}]
[null,"dont charges s/ex. antérieurs",{"$f":"'3-Saisie des comptes passés'!C26","v":0},{"$f":"'3-Saisie des comptes passés'!D26","v":0},{"$f":"'4-Saisie comptes prévisionnels'!B19","v":0},{"$f":"'4-Saisie comptes prévisionnels'!C19","v":0},"dont PCEA",null,{"$f":"'3-Saisie des comptes passés'!G26","v":0},{"$f":"'3-Saisie des comptes passés'!H26","v":0},{"$f":"'4-Saisie comptes prévisionnels'!E19","v":0},{"$f":"'4-Saisie comptes prévisionnels'!F19","v":0}]
[null,"Autres (impôts sociétés): ",{"$f":"'3-Saisie des comptes passés'!C27","v":0},{"$f":"'3-Saisie des comptes passés'!D27","v":0},{"$f":"'4-Saisie comptes prévisionnels'!B20","v":0},{"$f":"'4-Saisie comptes prévisionnels'!C20","v":0},"Autres (report des ressources): ",null,{"$f":"'3-Saisie des comptes passés'!G27","v":0},{"$f":"'3-Saisie des comptes passés'!H27","v":0},{"$f":"'4-Saisie comptes prévisionnels'!E20","v":0},{"$f":"'4-Saisie comptes prévisionnels'!F20","v":0}]
[]
[null,"Résultat d'exploitation",{"$f":"'3-Saisie des comptes passés'!C29","v":0},{"$f":"'3-Saisie des comptes passés'!D29","v":0},{"$f":"'4-Saisie comptes prévisionnels'!B22","v":0},{"$f":"'4-Saisie comptes prévisionnels'!C22","v":0}]
[null,"Résultat net",{"$f":"'3-Saisie des comptes passés'!C30","v":0},{"$f":"'3-Saisie des comptes passés'!D30","v":0},{"$f":"'4-Saisie comptes prévisionnels'!B23","v":0},{"$f":"'4-Saisie comptes prévisionnels'!C23","v":0}]
[null,"CAF",{"$f":"'3-Saisie des comptes passés'!C32","v":0},{"$f":"'3-Saisie des comptes passés'!D32","v":0},{"$f":"'4-Saisie comptes prévisionnels'!B25","v":0},{"$f":"'4-Saisie comptes prévisionnels'!C25","v":0}]
[]
[null,"Analyse du compte de résultat",null,null,{"$f":"D42","v":2019},{"$f":"E42","v":"Cpte 2020 pas arrêté"}]
[null,"Baisse significative des produits d'exploitation sur les 2 derniers exercices clos\n(< -25 % = très grave ;  < -15 % = grave ; < -5 % = préoccupant ; > 5 % = Ok)",null,null,{"$f":"('3-Saisie des comptes passés'!H16-'3-Saisie des comptes passés'!G16)/'3-Saisie des comptes passés'!G16","v":{"$error":"#DIV/0!"}},{"$f":"IF(F94=\"2020\",(('3-Saisie des comptes passés'!I16-'3-Saisie des comptes passés'!H16)/'3-Saisie des comptes passés'!H16),\"/\")","v":"/"}]
[null,"Evolution résultat d'exploitation 2018-2019",null,null,{"$f":"('3-Saisie des comptes passés'!D29-'3-Saisie des comptes passés'!C29)/'3-Saisie des comptes passés'!C29","v":{"$error":"#DIV/0!"}},{"$f":"IF(F94=\"2020\",(('3-Saisie des comptes passés'!E29-'3-Saisie des comptes passés'!D29)/'3-Saisie des comptes passés'!D29),\"/\")","v":"/"}]
[null,"Evolution résultat net 2018-2019",null,null,{"$f":"('3-Saisie des comptes passés'!D30-'3-Saisie des comptes passés'!C30)/'3-Saisie des comptes passés'!C30","v":{"$error":"#DIV/0!"}},{"$f":"IF(F94=\"2020\",(('3-Saisie des comptes passés'!E30-'3-Saisie des comptes passés'!D30)/'3-Saisie des comptes passés'!D30),\"/\")","v":"/"}]
[]
[null,"Ratios économiques",null,{"$f":"'3-Saisie des comptes passés'!G15","v":2018},{"$f":"'3-Saisie des comptes passés'!H15","v":2019},{"$f":"F94","v":"Cpte 2020 pas arrêté"}]
[null,"Part des recettes sur le total des produits d'exploitation",null,{"$f":"'3-Saisie des comptes passés'!G17/'3-Saisie des comptes passés'!G16","v":{"$error":"#DIV/0!"}},{"$f":"('3-Saisie des comptes passés'!H17/'3-Saisie des comptes passés'!H16)","v":{"$error":"#DIV/0!"}},{"$f":"IF(F94=\"2020\",('3-Saisie des comptes passés'!I17/'3-Saisie des comptes passés'!I16),\"/\")","v":"/"}]
[null,"Part des subventions sur le total des produits d'exploitation",null,{"$f":"'3-Saisie des comptes passés'!G18/'3-Saisie des comptes passés'!G16","v":{"$error":"#DIV/0!"}},{"$f":"('3-Saisie des comptes passés'!H18/'3-Saisie des comptes passés'!H16)","v":{"$error":"#DIV/0!"}},{"$f":"IF(F94=\"2020\",('3-Saisie des comptes passés'!I18/'3-Saisie des comptes passés'!I16),\"/\")","v":"/"}]
[null,"Part des aides aux postes sur le total des produits d'exploitation",null,{"$f":"'3-Saisie des comptes passés'!G19/'3-Saisie des comptes passés'!G16","v":{"$error":"#DIV/0!"}},{"$f":"('3-Saisie des comptes passés'!H19/'3-Saisie des comptes passés'!H16)","v":{"$error":"#DIV/0!"}},{"$f":"IF(F94=\"2020\",('3-Saisie des comptes passés'!I19/'3-Saisie des comptes passés'!I16),\"/\")","v":"/"}]
[null,"Part des aides à l'emploi sur le total de la masse salariale",null,{"$f":"'3-Saisie des comptes passés'!G19/('3-Saisie des comptes passés'!C18+'3-Saisie des comptes passés'!C19)","v":{"$error":"#DIV/0!"}},{"$f":"('3-Saisie des comptes passés'!H19/('3-Saisie des comptes passés'!D18+'3-Saisie des comptes passés'!D19))","v":{"$error":"#DIV/0!"}},{"$f":"IF(F94=\"2020\",('3-Saisie des comptes passés'!I19/('3-Saisie des comptes passés'!E18+'3-Saisie des comptes passés'!E19)),\"/\")","v":"/"}]
[null,"Poids de la masse salariale sur le total des charges d'exploitation",null,{"$f":"('3-Saisie des comptes passés'!C18+'3-Saisie des comptes passés'!C19)/'3-Saisie des comptes passés'!C16","v":{"$error":"#DIV/0!"}},{"$f":"(('3-Saisie des comptes passés'!D18+'3-Saisie des comptes passés'!D19)/'3-Saisie des comptes passés'!D16)","v":{"$error":"#DIV/0!"}},{"$f":"IF(F94=\"2020\",(('3-Saisie des comptes passés'!E18+'3-Saisie des comptes passés'!E19)/'3-Saisie des comptes passés'!E16),\"/\")","v":"/"}]
[null,"Délai moyen de recouvrement des créances clients (en nombre de jours)",null,{"$f":"(('3-Saisie des comptes passés'!C8/'3-Saisie des comptes passés'!G17)*365)","v":{"$error":"#DIV/0!"}},{"$f":"('3-Saisie des comptes passés'!D8/'3-Saisie des comptes passés'!H17)*365","v":{"$error":"#DIV/0!"}},{"$f":"IF(F94=\"2020\",(('3-Saisie des comptes passés'!E8/'3-Saisie des comptes passés'!I17)*365),\"/\")","v":"/"}]
[null,"Délai moyen de recouvrement des subventions (en nombre de jours)",null,{"$f":"('3-Saisie des comptes passés'!C9/'3-Saisie des comptes passés'!G18*365)","v":{"$error":"#DIV/0!"}},{"$f":"('3-Saisie des comptes passés'!D9/'3-Saisie des comptes passés'!H18*365)","v":{"$error":"#DIV/0!"}},{"$f":"IF(F94=\"2020\",('3-Saisie des comptes passés'!E9/'3-Saisie des comptes passés'!I18*365),\"/\")","v":"/"}]
[null,"Délai moyen de paiement des dettes d'exploitation (en nombre de jours)",null,{"$f":"('3-Saisie des comptes passés'!G9/'3-Saisie des comptes passés'!C16*365)","v":{"$error":"#DIV/0!"}},{"$f":"('3-Saisie des comptes passés'!H9/'3-Saisie des comptes passés'!D16*365)","v":{"$error":"#DIV/0!"}},{"$f":"IF(F94=\"2020\",('3-Saisie des comptes passés'!I9/'3-Saisie des comptes passés'!E16*365),\"/\")","v":"/"}]
[]
[]
[]
[]
[]
[]
[]
[]
[]
[]
[]
[]
[]
[null,"Analyse économique:"]
[]
[]
[]
[]
[]
[null,"Préconisations et prescriptions "]
[]
[]
[]
[]
[]
[null,"Mot de passe de la feuille  : FAA"]

{"sheet":"Liste FAA","index":9,"n_rows":98,"n_cols":6,"rows_kept":98,"cut":false,"hidden":true,"merged":[]}
[]
[null,"D - Risque avéré de rupture de trésorerie, situation qui semble déjà très compromise, avec peu de marges de manœuvre"]
[null,"C - L'entreprise paraît en risque de rupture de trésorerie courant 2020, il semble encore exister des leviers à activer"]
[null,"B - L'entreprise connaît des difficultés importantes avec la crise, mais ces risques ne semblent pas de nature à menacer sa poursuite d'activité"]
[null,"A - L'entreprise subit de faibles impacts de la crise, voire connaît un développement d'activité"]
[]
[null,"Activité totalement arrêtée"]
[null,"Activité réduite"]
[null,"Activité se poursuit à l'identique"]
[null,"Activité en croissance"]
[]
[null,"Equipe totalement à l'arrêt"]
[null,"Equipe réduite"]
[null,"Equipe maintenue à l'identique"]
[null,"Equipe en croissance"]
[]
[null,"Je suis en rupture de trésorerie depuis le début de la crise"]
[null,"Je viens d'être en rupture de trésorerie"]
[null,"Je ne suis pas en rupture de trésorerie mais je prévois d'y être dans moins d'1 mois"]
[null,"Je ne suis pas en rupture de trésorerie mais je prévois d'y être dans 1 à 3 mois"]
[null,"Je ne suis pas en rupture de trésorerie mais je prévois d'y être dans plus de 3 mois"]
[null,"Je pense ne pas avoir de risque de rupture de trésorerie cette année"]
[]
[null,"Fort"]
[null,"Moyen"]
[null,"Faible"]
[]
[null,"Bon"]
[null,"Moyen"]
[null,"Faible"]
[]
[]
[null,"OK"]
[null,"KO"]
[]
[null,"OUI"]
[null,"NON"]
[]
[null,"Création"]
[null,"Reprise"]
[null,"Développement"]
[null,"Rebond"]
[null,"Changement d'échelle"]
[]
[null,"Pas de réponse ou injoignable"]
[null,"Refus de soutien bancaire"]
[null,"Soutien bancaire obtenu mais insuffisant"]
[null,"Soutien bancaire obtenu et suffisant pour les 6 prochains mois"]
[null,"Bonne relation"]
[null,"Oui déjà avant la crise"]
[null,"Oui depuis la crise"]
[null,"Non pas encore"]
[null,"Non pas de risque à court terme"]
[]
[null,"Non"]
[null,"Oui, ponctuellement"]
[null,"Oui, souvent"]
[]
[null,"J'en avais déjà avant la crise"]
[null,"Dès le début de la crise"]
[null,"Durant la crise"]
[null,"Cela vient de commencer"]
[]
[null,"Très bon, je n'avais jamais de soucis de trésorerie"]
[null,"Bon : mes tensions de trésorerie étaient épisodiques et maîtrisées"]
[null,"Moyen : certaines périodes étaient difficiles à gérer "]
[null,"Mauvais : j'avais des problèmes de trésorerie permanents"]
[]
[]
[null,"inférieur à 5000€"]
[null,"entre 5 et 10000€"]
[null,"supérieur à 10000€"]
[]
[]
[null,null,{"$f":"'3-Saisie des comptes passés'!C15","v":2018},{"$f":"'3-Saisie des comptes passés'!D15","v":2019},{"$f":"'4-Saisie comptes prévisionnels'!B8","v":2020},{"$f":"'4-Saisie comptes prévisionnels'!C8","v":2021}]
[null,"Masse Salariale :",{"$f":"C77+C78","v":0},{"$f":"D77+D78","v":0},{"$f":"E77+E78","v":0},{"$f":"F77+F78","v":0}]
[null,{"$f":"\"=Salaires Bruts\"","v":"=Salaires Bruts"},{"$f":"'3-Saisie des comptes passés'!C18","v":0},{"$f":"'3-Saisie des comptes passés'!D18","v":0},{"$f":"'4-Saisie comptes prévisionnels'!B11","v":0},{"$f":"'4-Saisie comptes prévisionnels'!C11","v":0}]
[null,{"$f":"\"+Charges Sociales\"","v":"+Charges Sociales"},{"$f":"'3-Saisie des comptes passés'!C19","v":0},{"$f":"'3-Saisie des comptes passés'!D19","v":0},{"$f":"'4-Saisie comptes prévisionnels'!B12","v":0},{"$f":"'4-Saisie comptes prévisionnels'!C12","v":0}]
[]
[]
[null,"1 mois"]
[null,"2 mois"]
[]
[]
[null,"Prêt Garanti par l'Etat (PGE)"]
[null,"Prêt BPI"]
[null,"Prêt de Solidarité et de Proximité aux TPE/Asso"]
[null,"Fonds de Prêts aux Structures de l'ESS"]
[null,"Avance Remboursable"]
[null,"Prêts autres"]
[]
[null,"Oui l'association a déjà bénéficié d'un DLA"]
[null,"Oui l'association a commencé un accompagnement DLA"]
[null,"Non"]
[]
[null,"Oui l'association a déjà bénéficié d'un accompagnement CAP'AM ou d'un financement"]
[null,"Oui l'association a commencé un accompagnement CAP'AM ou une demande de financement"]
[null,"Non"]